bitfinex/quotes_ETHUSD_20240715
["timestamp","ask_amount","ask_price","bid_price","bid_amount"]
[1721072924591,0.1209687,3411.5,3410.7,2.9319]
[1721072924787,0.1209687,3411.5,3410.8,38.0]
[1721072925074,0.1209687,3411.5,3410.9,2.75967292]
[1721072925394,0.1209687,3411.5,3410.8,40.93185]
[1721072925395,0.1209687,3411.5,3410.8,5.93185]
[1721072925596,0.1209687,3411.5,3410.8,3.0]
[1721072925914,0.1209687,3411.5,3410.5,3.0]
[1721072926222,0.1209687,3411.5,3410.7,2.93187]
[1721072926387,0.1209687,3411.5,3410.8,3.0]
[1721072926585,0.1209687,3411.5,3410.8,4.186397]
[1721072926991,0.1209687,3411.5,3410.2,35.886498]
[1721072926992,0.1209687,3411.5,3411.0,2.93165]
[1721072927385,0.1209687,3411.5,3410.3,5.93228]
[1721072927592,0.1209687,3411.5,3408.0,6.4732]
[1721072927593,2.93153,3411.2,3409.7,2.93272]
[1721072927813,2.93153,3411.2,3409.8,2.93271]
[1721072928019,0.55,3411.1,3409.8,2.93271]
[1721072928334,2.93198,3410.7,3409.0,2.93338]
[1721072928504,3.089,3410.9,3408.8,2.3378]
[1721072928505,2.93248,3410.1,3408.8,2.3378]
[1721072928884,2.9323,3410.3,3408.2,5.27189]
[1721072928885,0.55,3410.0,3408.2,5.27189]
[1721072929084,2.93287,3409.7,3408.5,2.93377]
[1721072929593,2.93287,3409.7,3408.2,2.3378]
[1721072929594,0.55,3409.6,3408.6,2.93374]
[1721072929923,0.55,3409.6,3408.7,0.586766]
[1721072930290,2.93281,3409.7,3408.7,0.586766]
[1721072930491,0.55,3409.6,3408.7,3.586766]
[1721072930823,2.93238,3410.2,3408.8,2.93351]
[1721072931139,2.93289,3409.6,3408.0,3.539]
[1721072931280,2.93289,3409.6,3408.1,2.91736562]
[1721072931485,2.93289,3409.6,3408.4,2.9339]
[1721072931486,0.55,3409.5,3408.4,2.9339]
[1721072931688,0.55,3409.5,3408.6,2.93374]
[1721072931887,2.93221,3410.4,3408.3,5.4204]
[1721072931888,3.659593,3410.6,3408.7,2.93366]
[1721072932102,0.55,3410.4,3409.2,2.93322]
[1721072932320,3.3165,3411.0,3409.2,2.93322]
[1721072932530,2.93203,3410.6,3408.8,6.226936]
[1721072932697,3.3165,3411.0,3409.2,2.93319]
[1721072932698,0.55,3410.5,3409.2,2.93319]
[1721072933030,3.3165,3411.0,3409.4,2.93304]
[1721072933031,2.93201,3410.7,3409.4,2.93304]
[1721072933316,2.93201,3410.7,3409.5,0.05865038]
[1721072933523,2.4721,3411.0,3409.2,0.293319]
[1721072933827,2.93204,3410.6,3409.5,2.93291]
[1721072933986,2.93204,3410.6,3409.5,0.3226229]
[1721072934203,2.93167,3411.1,3409.6,2.93283]
[1721072934533,2.93177,3410.9,3409.6,2.93288]
[1721072934897,2.93186,3410.8,3409.6,2.93288]
[1721072935220,2.93186,3410.8,3409.7,37.93279]
[1721072935523,2.93186,3410.8,3409.8,5.85006562]
[1721072935925,3.0522987,3411.5,3410.1,2.93239]
[1721072936131,3.0522987,3411.5,3410.4,2.93218]
[1721072936132,0.1209687,3411.5,3410.4,2.93218]
[1721072936329,0.1209687,3411.5,3410.7,2.93187]
[1721072936623,0.1209687,3411.5,3411.0,2.93167]
[1721072936831,0.1209687,3411.5,3410.8,3.29904985]
[1721072936832,0.1209687,3411.5,3411.1,2.93157]
[1721072936989,0.1209687,3411.5,3410.8,5.55594985]
[1721072937324,0.1209687,3411.5,3410.8,8.48778985]
[1721072937498,0.1209687,3411.5,3410.9,35.0]
[1721072937829,0.1209687,3411.5,3411.0,2.91736562]
[1721072938040,0.1209687,3411.5,3410.8,3.29904985]
[1721072938210,0.1209687,3411.5,3410.8,0.29904985]
[1721072938534,0.1209687,3411.5,3410.9,35.0]
[1721072939839,0.1209687,3411.5,3410.9,37.93176]
[1721072940204,0.1209687,3411.5,3411.1,2.9316]
[1721072940423,0.1209687,3411.5,3411.2,2.91736562]
[1721072940630,0.1209687,3411.5,3410.9,2.93172]
[1721072940840,0.1209687,3411.5,3411.0,35.0]
[1721072941047,0.1209687,3411.5,3411.1,2.93158]
[1721072941737,0.1209687,3411.5,3410.8,3.23089985]
[1721072941738,0.1209687,3411.5,3410.8,0.29904985]
[1721072942128,0.1209687,3411.5,3410.9,2.93175]
[1721072942323,0.1209687,3411.5,3411.4,5.86268]
[1721072942500,2.92964,3413.4,3412.2,2.93062]
[1721072942839,2.92971,3413.3,3412.0,6.46982]
[1721072943047,2.92971,3413.3,3412.1,35.0]
[1721072943197,2.92955,3413.5,3412.2,2.93065]
[1721072943397,2.92938,3413.7,3412.5,2.93032]
[1721072943616,2.92956,3413.5,3412.0,3.539]
[1721072943819,2.92956,3413.5,3412.4,2.93047]
[1721072944106,2.92956,3413.5,3412.5,37.93039]
[1721072944519,2.92972,3413.3,3412.5,35.0]
[1721072944720,2.92972,3413.3,3412.5,37.91736562]
[1721072944915,3.089,3413.9,3412.5,37.91736562]
[1721072944916,2.92923,3413.9,3412.5,37.91736562]
[1721072945143,2.92923,3413.9,3412.6,3.0]
[1721072945351,2.6608,3414.2,3412.6,3.0]
[1721072945352,2.92911,3414.0,3412.6,3.0]
[1721072945555,2.92866,3414.6,3413.6,2.92945]
[1721072945709,0.1209687,3414.9,3413.7,0.05857515]
[1721072946033,0.1209687,3414.9,3413.8,35.0]
[1721072946238,2.92866,3414.6,3413.8,35.0]
[1721072946423,2.92866,3414.6,3413.9,0.29904985]
[1721072946631,0.1209687,3414.9,3414.0,0.05857818]
[1721072946925,0.1209687,3414.9,3413.9,0.29904985]
[1721072947239,0.1209687,3414.9,3413.9,0.35762083]
[1721072947414,0.1209687,3414.9,3414.5,2.92866]
[1721072947609,0.1209687,3414.9,3414.1,2.4895]
[1721072947862,0.1209687,3414.9,3413.9,3.29904985]
[1721072948227,0.1209687,3414.9,3414.3,2.92879]
[1721072948431,0.1209687,3414.9,3413.9,6.22823985]
[1721072948637,0.1209687,3414.9,3414.2,2.92892]
[1721072948961,0.1209687,3414.9,3414.0,2.92907]
[1721072949251,0.1209687,3414.9,3414.0,2.91736562]
[1721072949451,0.1209687,3414.9,3413.9,6.22823985]
[1721072949452,0.1209687,3414.9,3414.1,0.05856861]
[1721072949665,0.1209687,3414.9,3414.4,2.92874]
[1721072949953,0.1209687,3414.9,3413.9,3.22823985]
[1721072950113,0.1209687,3414.9,3413.5,7.4]
[1721072950476,2.92898,3414.2,3412.8,7.4]
[1721072950769,2.92922,3413.9,3412.8,2.93011]
[1721072950916,2.92898,3414.2,3412.7,1.24582836]
[1721072950917,2.92898,3414.2,3412.7,2.93022]
[1721072951112,2.92938,3413.7,3412.3,5.31004]
[1721072951312,2.92938,3413.7,3412.1,45.939]
[1721072951313,0.55,3413.6,3412.4,2.91736562]
[1721072951512,0.55,3413.6,3411.7,2.3795]
[1721072951513,3.637,3413.6,3411.8,2.93099]
[1721072951858,7.3,3414.7,3411.7,9.7795]
[1721072951859,0.2944,3414.4,3411.9,0.05860575]
[1721072952150,0.2944,3414.4,3411.7,2.3795]
[1721072952151,0.2944,3414.8,3412.3,2.93051]
[1721072952352,2.92802,3415.3,3413.8,2.92927]
[1721072952660,2.4957,3416.0,3413.6,3.539]
[1721072952661,2.92832,3415.0,3413.6,3.539]
[1721072952867,2.9277,3415.7,3413.6,3.539]
[1721072952868,2.92792,3415.4,3413.7,0.41246835]
[1721072953153,2.92792,3415.4,3414.2,2.92886]
[1721072953360,2.92792,3415.4,3414.0,2.9291]
[1721072953564,5.5827,3416.0,3413.7,0.3539]
[1721072953565,2.4957,3416.0,3414.1,3.0]
[1721072953754,2.92849,3414.8,3413.7,3.3539]
[1721072953922,2.92799,3415.4,3413.8,35.628334]
[1721072954119,2.92769,3415.7,3414.0,2.92911]
[1721072954324,1e-08,3414.9,3414.1,0.0585632]
[1721072954523,1e-08,3414.9,3414.3,2.92883]
[1721072954720,1e-08,3414.9,3414.2,35.0]
[1721072954926,1e-08,3414.9,3414.2,37.97593421]
[1721072955146,1e-08,3414.9,3414.3,2.98734296]
[1721072955343,1e-08,3414.9,3414.2,37.91736562]
[1721072955546,1e-08,3414.9,3414.2,35.0]
[1721072955820,1e-08,3414.9,3413.9,2.92919]
[1721072955821,2.9285,3414.8,3413.8,0.628334]
[1721072956022,2.92886,3414.3,3413.2,7.4]
[1721072956222,5.3387,3414.7,3413.2,7.4]
[1721072956430,2.92911,3414.1,3413.2,7.4]
[1721072956631,0.55,3414.0,3412.6,7.4]
[1721072956928,2.92931,3413.8,3412.6,7.4]
[1721072957122,2.92948,3413.6,3412.6,7.4]
[1721072957435,2.92988,3413.1,3411.8,7.4]
[1721072957764,2.92988,3413.1,3411.7,2.93102]
[1721072957765,2.93012,3412.9,3411.7,37.93102]
[1721072957928,2.93015,3412.8,3411.7,37.93102]
[1721072958124,2.92988,3413.1,3411.7,37.93102]
[1721072958125,2.93001,3413.0,3411.7,37.93102]
[1721072958475,0.55,3413.5,3411.8,5.90695342]
[1721072958629,3.637,3413.8,3411.8,5.90695342]
[1721072958827,2.92967,3413.4,3412.0,2.9308]
[1721072959061,0.55,3413.3,3412.0,2.93081]
[1721072959226,2.92992,3413.1,3411.8,5.84836562]
[1721072959426,3.47972,3413.3,3411.9,2.16115219]
[1721072959635,2.9298,3413.2,3412.0,2.9308]
[1721072959840,3.47995,3413.1,3411.9,2.16115219]
[1721072960152,2.93024,3412.7,3411.7,35.0]
[1721072960366,3.087,3412.8,3411.0,2.2617]
[1721072960569,3.087,3412.8,3410.7,15.30193]
[1721072960570,2.9308,3412.1,3410.7,15.30193]
[1721072960864,2.9308,3412.1,3411.2,35.0]
[1721072961065,2.93058,3412.3,3411.2,35.0]
[1721072961250,0.55,3412.2,3411.3,2.91736562]
[1721072961654,6.01723,3412.8,3411.3,2.91736562]
[1721072961655,7.5944,3413.3,3411.3,2.91736562]
[1721072961860,2.93006,3412.9,3411.5,2.93125]
[1721072962060,2.93006,3412.9,3411.3,2.91736562]
[1721072962061,2.9304,3412.5,3411.4,2.93127]
[1721072962465,2.9304,3412.5,3411.5,3.0]
[1721072962466,0.55,3412.4,3411.5,3.0]
[1721072962670,2.93058,3412.3,3411.5,2.16115219]
[1721072963067,2.93072,3412.2,3411.5,2.16115219]
[1721072963268,3.48072,3412.2,3411.3,3.0]
[1721072963660,3.48072,3412.2,3410.6,7.4]
[1721072963661,0.55,3412.2,3410.6,7.4]
[1721072963861,2.93109,3411.7,3410.6,2.93202]
[1721072964117,2.93109,3411.7,3410.7,35.0]
[1721072964247,3.637,3412.4,3410.7,35.0]
[1721072964248,2.93084,3412.0,3410.7,37.93194]
[1721072964580,2.93084,3412.0,3410.8,2.91736562]
[1721072964795,2.93084,3412.0,3410.9,2.93177]
[1721072964957,3.48049,3412.4,3411.0,3.0]
[1721072965168,0.55,3412.4,3411.0,3.0]
[1721072965502,0.55,3412.4,3410.9,3.0]
[1721072965644,2.93082,3412.1,3411.0,2.16115219]
[1721072965982,0.55,3412.0,3411.1,0.05862598]
[1721072966197,2.93086,3412.0,3411.0,5.16115219]
[1721072966691,2.93102,3411.8,3411.0,2.16115219]
[1721072966858,2.93102,3411.8,3410.8,3.0]
[1721072966859,3.087,3411.8,3410.0,10.3325]
[1721072967066,3.087,3411.8,3409.8,2.93271]
[1721072967067,2.93164,3411.1,3409.8,2.93271]
[1721072967373,2.9317,3411.0,3409.9,37.93262]
[1721072968048,0.55,3410.9,3409.9,37.93262]
[1721072968252,3.48177,3410.9,3409.9,37.93262]
[1721072968452,2.93196,3410.7,3409.4,7.4]
[1721072968673,0.55,3410.9,3409.4,7.4]
[1721072968674,3.4821,3410.6,3409.4,7.4]
[1721072968859,2.9321,3410.6,3409.5,35.0]
[1721072969059,0.55,3410.5,3409.5,35.0]
[1721072969263,2.93169,3411.0,3409.7,2.9328]
[1721072969548,0.55,3410.9,3409.8,2.91736562]
[1721072969847,0.55,3410.9,3409.4,10.333]
[1721072969848,2.93223,3410.4,3409.9,35.0]
[1721072970083,2.93275,3409.8,3409.4,7.4]
[1721072970556,0.55,3410.3,3408.4,7.4]
[1721072970557,0.55,3409.7,3408.4,7.4]
[1721072970883,2.93238,3410.2,3409.0,2.93334]
[1721072971063,0.55,3410.3,3409.1,3.226634]
[1721072971064,3.48247,3410.1,3409.1,3.226634]
[1721072971251,3.48229,3410.3,3409.1,3.226634]
[1721072971252,0.55,3410.3,3409.1,3.226634]
[1721072971651,2.9326,3410.0,3409.1,0.293334]
[1721072971857,3.48264,3409.9,3408.9,2.93349]
[1721072972083,3.48264,3409.9,3408.5,7.4]
[1721072972084,0.55,3409.8,3409.0,3.0]
[1721072972304,0.55,3409.8,3409.0,35.0]
[1721072972592,2.93255,3410.0,3409.0,35.0]
[1721072972593,0.55,3409.9,3409.0,35.0]
[1721072973155,3.48255,3410.0,3409.0,35.0]
[1721072973355,2.93272,3409.8,3409.0,37.91736562]
[1721072973791,0.55,3410.0,3409.0,37.91736562]
[1721072973977,3.4826,3410.0,3409.0,37.91736562]
[1721072974490,2.93271,3409.9,3409.0,37.91736562]
[1721072974679,0.55,3409.8,3409.0,37.91736562]
[1721072974881,3.087,3409.1,3406.9,0.60308066]
[1721072975192,3.087,3409.1,3406.4,1.50660299]
[1721072975193,2.93512,3407.1,3406.0,0.2944]
[1721072975430,4.92082894,3407.0,3406.1,35.0]
[1721072975599,2.3693,3407.7,3406.2,2.91736562]
[1721072975890,2.93489,3407.3,3406.2,2.91736562]
[1721072976089,2.93482,3407.4,3406.1,2.3731]
[1721072976290,2.93482,3407.4,3406.2,35.0]
[1721072976291,0.55,3407.3,3406.2,35.0]
[1721072976453,2.93513,3407.0,3406.2,35.0]
[1721072976684,0.55,3406.9,3406.2,35.0]
[1721072976878,2.93503,3407.2,3406.2,35.0]
[1721072977116,2.93528,3406.9,3406.2,35.0]
[1721072977507,2.93549,3406.6,3406.2,35.0]
[1721072977680,0.55,3406.5,3406.2,35.0]
[1721072977880,2.93565,3406.4,3406.2,35.0]
[1721072978083,0.55,3406.5,3406.2,35.0]
[1721072978084,0.55,3406.3,3406.2,35.0]
[1721072978283,3.48558,3406.5,3406.2,35.0]
[1721072978493,3.48558,3406.5,3405.4,2.4773]
[1721072978494,0.55,3406.5,3405.5,0.2944]
[1721072978719,0.55,3406.6,3405.7,0.2944]
[1721072978930,2.93573,3406.3,3405.7,0.2944]
[1721072979142,2.93573,3406.3,3405.9,0.2944]
[1721072979339,2.93573,3406.3,3405.8,35.0]
[1721072979340,0.55,3406.2,3405.8,35.0]
[1721072979491,2.93586,3406.2,3405.8,35.0]
[1721072979825,3.48594,3406.1,3405.8,35.0]
[1721072980686,3.48594,3406.1,3404.8,2.93702]
[1721072980884,2.93599,3406.0,3404.9,0.83539787]
[1721072981122,2.93599,3406.0,3405.2,35.0]
[1721072981550,0.55,3406.1,3405.2,35.0]
[1721072982042,2.93573,3406.3,3405.2,35.0]
[1721072982043,0.55,3406.2,3405.2,35.0]
[1721072982189,9.791,3407.2,3404.9,3.83539787]
[1721072982388,2.93503,3407.2,3405.7,2.93625]
[1721072982724,2.93372,3408.7,3405.0,0.44225682]
[1721072982725,7.3,3409.3,3407.1,35.0]
[1721072982885,19.99,3411.2,3407.1,35.0]
[1721072982886,2.93247,3410.1,3407.2,2.3397]
[1721072983090,2.3906,3411.8,3408.0,3.539]
[1721072983343,2.93113,3411.7,3410.4,2.93218]
[1721072983491,2.93113,3411.7,3408.5,2.93377]
[1721072983492,0.30608186,3412.1,3410.6,2.3397]
[1721072983697,0.30608186,3412.1,3411.6,35.0]
[1721072983698,3.23690186,3412.1,3411.6,35.0]
[1721072984242,0.92282505,3412.1,3410.6,2.3397]
[1721072984399,2.93138,3411.4,3409.7,2.6341]
[1721072984595,2.93138,3411.4,3410.2,3.0]
[1721072984989,2.93134,3411.5,3410.2,3.0]
[1721072984990,2.9316,3411.1,3410.2,3.0]
[1721072985288,2.9316,3411.1,3410.3,35.0]
[1721072985518,2.93182,3410.9,3410.3,35.0]
[1721072986528,2.93186,3410.8,3410.3,35.0]
[1721072986891,3.66769274,3412.1,3410.3,35.0]
[1721072986892,2.93142,3411.4,3410.3,35.0]
[1721072987094,2.93083,3412.0,3410.7,2.93189]
[1721072987399,2.92979,3413.3,3410.3,0.94221453]
[1721072987400,2.93067,3412.2,3410.9,2.93176]
[1721072987612,2.93048,3412.4,3411.0,37.93167]
[1721072987815,2.93057,3412.3,3411.1,3.0]
[1721072987990,2.93001,3413.0,3411.2,1.7776124]
[1721072987991,2.93066,3412.2,3411.2,1.7776124]
[1721072988191,2.93051,3412.4,3411.2,1.7776124]
[1721072988819,2.93058,3412.3,3411.2,1.7776124]
[1721072989193,2.93075,3412.1,3411.2,1.7776124]
[1721072989532,2.9304,3412.5,3411.2,1.7776124]
[1721072989698,2.9304,3412.5,3411.3,0.38353979]
[1721072990036,2.9304,3412.5,3411.3,3.31495979]
[1721072990395,2.93048,3412.4,3411.3,0.38353979]
[1721072991291,2.93048,3412.4,3411.4,35.0]
[1721072991607,2.93075,3412.1,3411.4,35.0]
[1721072991945,2.93094,3411.9,3411.0,3.0]
[1721072992235,2.93094,3411.9,3411.1,35.0]
[1721072993543,2.931,3411.8,3411.1,35.0]
[1721072993741,2.931,3411.8,3411.1,37.91736562]
[1721072995004,0.55,3412.0,3411.1,37.91736562]
[1721072995005,0.55,3412.0,3411.1,35.0]
[1721072995200,2.93131,3411.5,3410.0,2.93246]
[1721072995425,2.93134,3411.4,3410.0,2.93246]
[1721072995629,2.93146,3411.3,3410.1,35.0]
[1721072995834,2.9317,3411.0,3410.1,35.0]
[1721072996010,5.86311,3411.2,3410.2,2.91736562]
[1721072996216,2.88152,3411.2,3410.2,2.91736562]
[1721072996519,3.55,3412.3,3410.4,2.93219]
[1721072996745,3.55,3412.3,3410.5,0.05862741]
[1721072996746,0.55,3412.3,3410.5,0.05862741]
[1721072996915,0.55,3412.3,3410.5,2.93211]
[1721072996916,2.9311,3411.7,3410.5,2.93211]
[1721072997114,2.9311,3411.7,3410.6,0.293211]
[1721072997412,2.93117,3411.6,3410.6,0.293211]
[1721072998242,2.931,3411.8,3410.6,0.293211]
[1721072998553,2.93081,3412.1,3410.8,2.93184]
[1721072998750,2.93081,3412.1,3410.9,3.0]
[1721072999050,2.93066,3412.2,3411.0,0.59904674]
[1721072999358,2.93064,3412.3,3411.2,2.9315]
[1721072999646,2.93066,3412.2,3411.1,2.3379]
[1721072999799,3.087,3412.8,3411.1,5.3379]
[1721073000000,2.93093,3411.9,3411.1,2.3379]
[1721073000199,2.93093,3411.9,3410.9,5.93177]
[1721073000200,3.988703,3412.7,3411.3,35.0]
[1721073000450,2.93167,3411.1,3410.3,2.3379]
[1721073000629,2.93108,3411.8,3409.6,12.37]
[1721073000630,3.087,3411.8,3409.7,7.4]
[1721073000839,3.087,3411.8,3409.8,35.0]
[1721073000840,2.93187,3410.8,3409.8,35.0]
[1721073001050,2.93187,3410.8,3409.9,2.91736562]
[1721073001549,2.93187,3410.8,3409.7,2.93276]
[1721073001775,2.93152,3411.2,3410.0,35.0]
[1721073002061,4.13850488,3412.7,3410.0,35.0]
[1721073002062,3.0,3412.6,3410.0,35.0]
[1721073002272,2.93043,3412.5,3410.2,2.3379]
[1721073002436,10.22944,3413.7,3411.3,2.93135]
[1721073002637,10.22944,3413.7,3411.5,2.3379]
[1721073002638,2.93034,3412.6,3411.5,2.3379]
[1721073002976,2.93049,3412.4,3411.6,35.0]
[1721073003133,2.93049,3412.4,3411.6,37.91736562]
[1721073003328,2.92992,3413.1,3411.6,37.91736562]
[1721073003527,2.93023,3412.7,3411.6,37.91736562]
[1721073003728,2.93032,3412.6,3411.6,35.0]
[1721073003958,2.93055,3412.4,3411.6,35.0]
[1721073004174,3.087,3413.1,3411.6,35.0]
[1721073004334,2.93072,3412.2,3411.6,35.0]
[1721073004691,2.93085,3412.0,3411.6,35.0]
[1721073004987,2.93016,3412.8,3411.6,40.84852562]
[1721073005189,2.93022,3412.8,3411.6,40.84852562]
[1721073005463,2.92986,3413.2,3412.0,2.93082]
[1721073005625,2.92989,3413.1,3412.0,3.81701]
[1721073005826,2.93006,3412.9,3412.0,0.88619]
[1721073006135,4.49551573,3413.7,3411.9,3.0]
[1721073006136,2.93024,3412.7,3411.9,3.0]
[1721073006439,2.92947,3413.6,3411.7,3.0]
[1721073006641,1.56606573,3413.7,3411.7,3.0]
[1721073006642,2.93024,3412.7,3411.7,3.0]
[1721073007665,2.93031,3412.6,3411.7,3.0]
[1721073008170,2.93027,3412.7,3411.7,3.0]
[1721073008468,2.93027,3412.7,3411.8,1.92736219]
[1721073008879,1.56606573,3413.7,3411.7,3.0]
[1721073008880,2.93032,3412.6,3411.7,3.0]
[1721073009254,2.93042,3412.5,3411.7,3.0]
[1721073009754,2.9298,3413.2,3411.7,3.0]
[1721073009755,2.9301,3412.9,3411.7,3.0]
[1721073009952,3.48015,3412.8,3411.7,3.0]
[1721073010158,2.92983,3413.2,3411.8,2.97597421]
[1721073010364,2.92979,3413.3,3411.8,2.97597421]
[1721073010365,0.55,3413.1,3412.0,2.93082]
[1721073010527,0.55,3413.2,3411.8,2.91736562]
[1721073010732,2.93031,3412.6,3411.9,3.0]
[1721073011032,2.93031,3412.6,3411.7,3.0]
[1721073011433,2.93043,3412.5,3411.7,3.0]
[1721073012445,3.47986,3413.2,3411.7,3.0]
[1721073012446,2.93049,3412.4,3411.7,3.0]
[1721073012859,2.92994,3413.1,3411.7,3.0]
[1721073012860,2.93062,3412.3,3411.7,3.0]
[1721073013068,2.92994,3413.1,3411.4,3.0]
[1721073013069,2.93083,3412.0,3411.4,3.0]
[1721073013595,2.93083,3412.0,3410.9,38.0]
[1721073013883,3.087,3412.8,3410.9,38.0]
[1721073013884,13.73606573,3413.7,3412.0,2.93081]
[1721073014183,2.92977,3413.3,3412.1,3.0]
[1721073014387,2.93032,3412.6,3412.2,35.0]
[1721073014591,2.92978,3413.3,3412.2,35.0]
[1721073014592,2.93007,3412.9,3412.2,35.0]
[1721073014902,2.93024,3412.7,3412.2,35.0]
[1721073015075,2.93007,3412.9,3412.2,35.0]
[1721073015279,2.93023,3412.7,3412.2,35.0]
[1721073015656,2.93006,3412.9,3412.2,35.0]
[1721073016000,2.93004,3413.0,3412.2,35.0]
[1721073016201,2.93004,3413.0,3412.2,37.91736562]
[1721073016484,2.93004,3413.0,3412.2,35.0]
[1721073016685,2.93023,3412.7,3411.9,3.0]
[1721073016985,2.93007,3412.9,3411.5,3.0]
[1721073017194,2.93007,3412.9,3412.0,35.0]
[1721073017352,2.93007,3412.9,3411.6,1.26648]
[1721073017353,2.93009,3412.9,3412.1,3.0]
[1721073017558,2.93018,3412.8,3411.9,3.0]
[1721073017868,3.087,3413.3,3411.9,35.0]
[1721073018176,2.93058,3412.3,3411.3,2.2648]
[1721073018382,3.087,3412.6,3410.5,9.7802]
[1721073018545,2.2982,3412.8,3410.6,35.0]
[1721073018546,2.93118,3411.6,3410.6,35.0]
[1721073018882,2.93118,3411.6,3410.5,2.3802]
[1721073018883,2.93135,3411.4,3410.5,2.3802]
[1721073019193,2.93135,3411.4,3409.8,7.4]
[1721073019194,2.93175,3411.0,3410.2,35.0]
[1721073019344,2.93143,3411.3,3410.2,35.0]
[1721073019550,2.93163,3411.1,3410.2,35.0]
[1721073019848,0.55,3411.2,3410.2,35.0]
[1721073019849,2.9317,3411.0,3410.2,35.0]
[1721073020068,2.93206,3410.6,3409.8,2.3076]
[1721073020282,2.93191,3410.8,3409.8,2.3076]
[1721073020494,0.55,3410.7,3409.8,2.831648]
[1721073020672,0.55,3410.7,3409.9,35.0]
[1721073021052,2.93162,3411.1,3409.9,35.0]
[1721073021251,2.93162,3411.1,3410.0,2.91736562]
[1721073021561,2.93162,3411.1,3409.1,7.4]
[1721073021562,3.55,3411.0,3409.1,7.4]
[1721073021899,3.55,3411.0,3409.2,35.0]
[1721073021900,2.93264,3409.9,3409.2,35.0]
[1721073022104,2.93272,3409.8,3409.2,35.0]
[1721073022893,10.85,3411.0,3408.5,2.93382]
[1721073022894,2.93282,3409.7,3408.5,2.93382]
[1721073023051,2.93289,3409.6,3408.6,1.264632]
[1721073023393,2.93289,3409.6,3408.3,2.3125]
[1721073023394,2.9329,3409.6,3408.7,35.0]
[1721073023560,3.48301,3409.5,3408.7,35.0]
[1721073023761,2.93307,3409.4,3408.7,35.0]
[1721073023968,2.93316,3409.3,3408.7,35.0]
[1721073024167,2.93316,3409.3,3407.8,10.33443]
[1721073024168,2.93332,3409.1,3407.8,10.33443]
[1721073024404,2.93342,3409.0,3407.8,1.568583]
[1721073024556,2.93342,3409.0,3407.7,5.86898]
[1721073024557,2.93353,3408.9,3407.7,5.86898]
[1721073024914,2.93342,3409.0,3407.7,2.93446]
[1721073025206,2.93367,3408.7,3407.7,2.9345]
[1721073025381,0.55,3408.8,3407.7,5.86895]
[1721073025897,0.55,3408.8,3408.0,2.93426]
[1721073026188,2.93352,3408.9,3408.1,0.293426]
[1721073026345,2.93352,3408.9,3407.8,2.93441]
[1721073026544,2.93341,3409.0,3407.6,2.93461]
[1721073026790,3.48351,3408.9,3407.8,2.9344]
[1721073026996,3.48351,3408.9,3407.9,3.0]
[1721073027450,3.48351,3408.9,3407.9,5.93434]
[1721073027650,0.55,3408.9,3407.9,6.821175]
[1721073028063,2.93342,3409.0,3407.9,6.821175]
[1721073028266,0.55,3408.9,3407.9,6.821175]
[1721073028487,2.9335,3408.9,3407.9,6.821175]
[1721073028673,2.9335,3408.9,3407.9,3.0]
[1721073028875,2.9335,3408.9,3407.8,5.93441]
[1721073029076,2.93359,3408.8,3407.8,3.0]
[1721073029289,2.93359,3408.8,3407.6,2.93458]
[1721073029290,2.93359,3408.8,3407.7,3.0]
[1721073029477,2.93359,3408.8,3407.6,5.9346]
[1721073029684,2.93359,3408.8,3407.7,5.85185562]
[1721073029865,2.93359,3408.8,3407.8,3.0]
[1721073030069,2.93384,3408.5,3407.8,3.0]
[1721073030272,2.93384,3408.5,3407.5,2.4168]
[1721073030273,2.93384,3408.5,3407.5,5.4168]
[1721073030781,2.93384,3408.5,3407.5,8.35147]
[1721073030985,2.93384,3408.5,3407.6,2.91736562]
[1721073031168,2.93384,3408.5,3407.7,3.0]
[1721073031703,0.55,3408.7,3407.7,3.0]
[1721073031873,2.93353,3408.9,3407.7,5.93444]
[1721073031874,0.55,3408.8,3407.7,5.93444]
[1721073032075,2.93352,3408.9,3407.9,2.93435]
[1721073032254,2.93352,3408.9,3407.9,4.11296556]
[1721073032460,0.05497655,3408.8,3407.9,1.17861556]
[1721073032703,2.98855655,3408.8,3408.0,35.0]
[1721073032993,2.93358,3408.8,3408.0,35.0]
[1721073033315,10.387,3409.9,3408.3,2.934]
[1721073033457,2.93353,3408.9,3407.9,1.17861556]
[1721073033885,2.93353,3408.9,3408.4,35.0]
[1721073034596,2.9334,3409.1,3408.4,35.0]
[1721073034796,2.93351,3408.9,3408.4,35.0]
[1721073035298,0.05555707,3408.8,3408.4,35.0]
[1721073035484,0.55,3408.7,3408.4,35.0]
[1721073035888,3.48368,3408.7,3407.7,3.0]
[1721073036201,0.05547572,3408.6,3407.8,0.864581]
[1721073036698,3.48368,3408.7,3407.9,35.0]
[1721073036901,3.48368,3408.7,3408.0,3.0]
[1721073037107,3.48368,3408.7,3407.8,0.864581]
[1721073037108,2.93385,3408.5,3407.8,0.864581]
[1721073037414,0.05539437,3408.4,3407.2,10.33495]
[1721073037567,0.05539437,3408.4,3407.9,35.0]
[1721073037960,2.93385,3408.5,3407.9,35.0]